Cogmind - Beta 15 *** ADVENTURER MODE // 2025.09.22 @ 05:21:47 Player: Olexender Result: Destroyed by 8R-AWN with 8R-AWN's Boregun Performance ------------- Evolutions (0) 0 Regions Visited (3) 600 Robots Destroyed (7) 35 Value Destroyed (215) 215 Prototype IDs (0) 0 Alien Tech Used (0) 0 Bonus (0) 0 TOTAL SCORE: 850 Bonus ------- None Cogmind --------- Core Integrity 0/250 Matter 300/300 Energy 100/100 System Corruption 0% Temperature Cool (0) Movement Walking (120) Location -10/Exiles Parts ------- > --- POWER (1) -------- (None) > --- PROPULSION (2) --- Aluminum Leg Aluminum Leg > --- UTILITY (2) ------ Medium Storage Unit Hardened Light Armor Plating > --- WEAPON (2) ------- (None) > --- INVENTORY (10) --- Aluminum Leg Large Storage Unit High-capacity Battery (250) Large Matter Pod (150) Peak State ------------ > --- POWER ------------ Improved Ion Engine > --- PROPULSION ------- Aluminum Leg Aluminum Leg > --- UTILITY ---------- Medium Storage Unit Hardened Light Armor Plating > --- WEAPON ----------- Beam Cannon Assault Rifle > --- INVENTORY -------- Improved Ion Engine Aluminum Leg Aluminum Leg Large Storage Unit High-capacity Battery Large Matter Pod Hardened Light Armor Plating Beam Cannon [Rating: 10] Favorites ----------- Power Improved Ion Engine Engine Improved Ion Engine Propulsion Aluminum Leg Leg Aluminum Leg Utility Hardened Light Armor Plating Storage Medium Storage Unit Protection Hardened Light Armor Plating Weapon Assault Rifle Energy Gun EM Pulse Gun Energy Cannon Beam Cannon Ballistic Gun Assault Rifle Special Weapon Mining Laser Build | -11 -10 -10 -10 ------- Run | Yrd Mat Min Exi Slots Evolved . | . . . . Power . | . . . . Propulsion . | . . . . Utility . | . . . . Weapon . | . . . . Parts Attached 19 | 6 6 3 4 Power 3 | 1 1 . 1 Engine 3 | 1 1 . 1 Core . | . . . . Reactor . | . . . . Propulsion 6 | 2 1 3 . Treads . | . . . . Leg 6 | 2 1 3 . Wheel . | . . . . Hover . | . . . . Flight . | . . . . Utility 5 | 1 3 . 1 Device . | . . . . Storage 3 | 1 2 . . Processor . | . . . . Hackware . | . . . . Protection 2 | . 1 . 1 Artifact . | . . . . Weapon 5 | 2 1 . 2 Energy Gun 1 | 1 . . . Energy Cannon 2 | . 1 . 1 Ballistic Gun 1 | 1 . . . Ballistic Cannon . | . . . . Launcher . | . . . . Special Weapon 1 | . . . 1 Impact Weapon . | . . . . Slashing Weapon . | . . . . Piercing Weapon . | . . . . Special Melee Weapon . | . . . . Unidentified Prototypes . | . . . . Parts Lost 8 | . . . 8 Power 2 | . . . 2 Propulsion 1 | . . . 1 Utility 1 | . . . 1 Weapon 4 | . . . 4 Highest Loss Streak 8 | . . . 8 To Critical Strikes 3 | . . . 3 Average Backups 6 | . 5 9 9 Power . | . . 1 . Propulsion 1 | . . 2 2 Utility 3 | . 2 4 3 Weapon 1 | . . 2 1 Tool/Special . | . . . . Unused Backups 1 | . . . 1 Power . | . . . . Propulsion . | . . . . Utility 1 | . . . 1 Weapon . | . . . . Tool/Special . | . . . . Average Slot Usage (%) 96 | . 96 100 91 Engine 13 | . 14 14 13 Leg 27 | . 27 28 24 Storage 14 | . 14 14 14 Protection 12 | . 11 14 14 Energy Gun 3 | . 5 . . Energy Cannon 10 | . 7 14 12 Ballistic Gun 13 | . 13 14 10 Peak Build Rating 10 | 6 10 10 10 Average Rating 8 | 3 8 10 9 On Entrance 6 | . 6 10 10 Naked Turns . | . . . . Heaviest Build 27 | 14 27 27 27 Greatest Support 20 | 20 20 20 20 Greatest Overweight (x) 1 | . 1 1 1 Average Overweight (x) . | . . 1 1 Largest Inventory Capacity 15 | 8 15 10 10 Average Capacity 9 | 6 9 10 10 Most Carried 10 | 5 9 10 10 Average Carried 6 | 1 5 9 9 Final Capacity 10 | 8 10 10 10 Final Carried 10 | . 9 10 4 Class Distribution -------------------- 100% | Mutant Dominant Class ---------------- Mutant | -10/Materials Mutant | -10/Mines Mutant | -10/Exiles Resources | -11 -10 -10 -10 ----------- Run | Yrd Mat Min Exi Matter Collected 634 | 242 231 130 31 Remotely . | . . . . Salvage Created 338 | . 271 . 67 Parts 15 | . 15 . . Haulers Intercepted . | . . . . Recyclers Shooed 1 | . 1 . . Parts Field Recycled . | . . . . Retrieved Matter . | . . . . Parts Self-Destructed . | . . . . Prevented . | . . . . Kills | -11 -10 -10 -10 ------- Run | Yrd Mat Min Exi Combat Hostiles Destroyed 10 | . 5 . 5 Guns 4 | . 3 . 1 Cannons 6 | . 2 . 4 Classes Destroyed 3 | . 2 . 1 Watcher 2 | . 2 . . Grunt 5 | . 5 . . Assembled 5 | . . . 5 Best Kill Streak 5 | . 3 . 5 Combat Bots Only 5 | . 3 . 5 Max Kills in Single Turn 1 | . 1 . 1 Gunslinging . | . . . . Exploded . | . . . . Melee . | . . . . Uniques/NPCs Destroyed . | . . . . Combat | -11 -10 -10 -10 -------- Run | Yrd Mat Min Exi Hostile Shots Fired 125 | . 28 . 97 Missed 29 | . 2 . 27 Hits 96 | . 26 . 70 Melee 17 | . . . 17 Projectile 79 | . 26 . 53 Critical Strikes 23 | . . . 23 Damage Taken 1361 | . 262 . 1099 Core 263 | . 53 . 210 Absorbed by Shields . | . . . . Ignored by Resistances 384 | . 80 . 304 Core Remaining (%) 100 | 100 . . . Volleys Fired 34 | . 21 . 13 Largest 2 | . 2 . 2 Hottest 100 | . 80 . 100 Shots Fired 58 | . 42 . 16 Gun 34 | . 31 . 3 Cannon 23 | . 11 . 12 Launcher . | . . . . Special 1 | . . . 1 Kinetic 24 | . 21 . 3 Thermal 24 | . 11 . 13 Explosive . | . . . . Electromagnetic 10 | . 10 . . Robot Hit Streak 5 | . 5 . 5 Robot Miss Streak 2 | . 2 . 1 Penetration Max . | . . . . Secondary Targets . | . . . . Shots Hit Robots 34 | . 22 . 12 Core Hits 19 | . 10 . 9 Critical Kills 1 | . 1 . . Critical Parts Destroyed . | . . . . Critical Strikes 1 | . 1 . . Meltdown 1 | . 1 . . Melee Attacks . | . . . . Impact . | . . . . Slashing . | . . . . Piercing . | . . . . Sneak Attacks . | . . . . Combat Hostiles . | . . . . Follow-up Attacks . | . . . . Damage Inflicted 570 | . 382 . 188 Guns 209 | . 181 . 28 Cannons 294 | . 155 . 139 Explosions 46 | . 46 . . Melee . | . . . . Ramming 19 | . . . 19 Kinetic 128 | . 100 . 28 Thermal 342 | . 201 . 141 Explosive . | . . . . Electromagnetic 81 | . 81 . . Impact . | . . . . Slashing . | . . . . Piercing . | . . . . Highest Corruption . | . . . . Average Corruption . | . . . . Corruption Purged . | . . . . Corruption Blocked . | . . . . Overload Shots . | . . . . Overflow Damage . | . . . . Projectiles . | . . . . Explosions . | . . . . Melee . | . . . . Knockbacks . | . . . . Impact . | . . . . Kinetic . | . . . . Secondary . | . . . . Self-Inflicted Damage . | . . . . Shots . | . . . . Rammed . | . . . . Targets Rammed 10 | . . . 10 Kicked 10 | . . . 10 Crushed . | . . . . Highest Temperature 256 | . 250 . 256 Average Temperature 110 | . 112 . 106 Received Heat Transfer 192 | . 192 . . Siege Activations . | . . . . Martial Activations . | . . . . Shielding Activations . | . . . . Robots Disrupted . | . . . . Combat Hostiles . | . . . . Robots Corrupted . | . . . . Combat Hostiles . | . . . . Parts Fried . | . . . . Impact Corruptions . | . . . . Robots Melted 1 | . 1 . . Combat Hostiles . | . . . . Parts Melted . | . . . . Heat Transferred 750 | . 433 . 317 Parts Sabotaged . | . . . . Parts Stolen . | . . . . Parts Stripped . | . . . . Power Chain Reactions 1 | . 1 . . Alert | -11 -10 -10 -10 ------- Run | Yrd Mat Min Exi Maximum Alert Level . | . . . . Low Security (%) 100 | 100 100 100 . Level 1 . | . . . . Level 2 . | . . . . Level 3 . | . . . . Level 4 . | . . . . Level 5 . | . . . . High Security . | . . . . Max Security . | . . . . Peak Influence 61 | . 61 13 . Initial 13 | . . 13 . Average 6 | . 8 1 . Influence Increases 140 | . 140 . . Destroy 0b10 Robot/C 100 | . 100 . . Destroy 0b10 Robot/NC 10 | . 10 . . Destroy Leader 24 | . 24 . . Destroy Structure 6 | . 6 . . Influence Decreases 140 | . 99 41 . Entered New Map 28 | . . 28 . Time Decay 112 | . 99 13 . Squads Dispatched 1 | . 1 . . Investigation 1 | . 1 . . Extermination . | . . . . Reinforcement . | . . . . Assault . | . . . . Garrison . | . . . . Intercept . | . . . . Searches Triggered . | . . . . Construction Impeded . | . . . . Haulers Reinforced . | . . . . Active Scanning Responses . | . . . . Cargo Convoy Interrupts . | . . . . Stealth | -11 -10 -10 -10 --------- Run | Yrd Mat Min Exi Distress Signals . | . . . . Communications Jammed . | . . . . Distress Signals . | . . . . Times Spotted 16 | . 7 . 9 Peak Tracking Total 11 | . 3 . 11 Tactical Retreats 1 | . . . 1 Traps | -11 -10 -10 -10 ------- Run | Yrd Mat Min Exi Traps Triggered 3 | . 3 . . Indirectly . | . . . . Trap Hack Attempts . | . . . . Triggered . | . . . . Disarmed . | . . . . Reprogrammed . | . . . . Reused . | . . . . Traps Extracted . | . . . . Installed . | . . . . Triggered . | . . . . Machines | -11 -10 -10 -10 ---------- Run | Yrd Mat Min Exi Machines Disabled 2 | . . . 2 Max in Single Turn 1 | . . . 1 Machines Repaired . | . . . . Machines Dismantled . | . . . . Machines Sabotaged . | . . . . Overloaded Fab Kills . | . . . . Hacking | -11 -10 -10 -10 --------- Run | Yrd Mat Min Exi Machines Accessed 6 | . 5 . 1 Terminals 3 | . 3 . . Fabricators . | . . . . Repair Stations . | . . . . Recycling Units 2 | . 2 . . Scanalyzers . | . . . . Garrison Access . | . . . . Total Hacks 20 | . 11 . 9 Successful 18 | . 9 . 9 Failed 2 | . 2 . . Catastrophic . | . . . . Database Lockouts . | . . . . Manual . | . . . . Terminals 9 | . 9 . . Fabricators . | . . . . Repair Stations . | . . . . Recycling Units 2 | . 2 . . Scanalyzers . | . . . . Garrison Access . | . . . . Terminal Hacks 16 | . 7 . 9 Record 16 | . 7 . 9 Fabricator Hacks . | . . . . Repair Station Hacks . | . . . . Recycling Unit Hacks 2 | . 2 . . Report Inventory 2 | . 2 . . Scanalyzer . | . . . . Garrison Access Hacks . | . . . . Unauthorized Hacks . | . . . . Terminals . | . . . . Fabricators . | . . . . Repair Stations . | . . . . Recycling Units . | . . . . Scanalyzers . | . . . . Garrison Access . | . . . . Data Cores Recovered . | . . . . Used . | . . . . Hacking Detections 4 | . 4 . . Full Trace Events . | . . . . Feedback Events . | . . . . Feedback Blocked . | . . . . Robot Schematics Acquired . | . . . . Robots Built . | . . . . Authchips . | . . . . Time . | . . . . Total Robot Build Rating . | . . . . Part Schematics Acquired . | . . . . Parts Built . | . . . . Authchips . | . . . . Time . | . . . . Total Part Build Rating . | . . . . Parts Repaired . | . . . . Time . | . . . . Parts Recycled . | . . . . Recycled Matter . | . . . . Retrieved Matter . | . . . . Retrieved Components . | . . . . Parts Scanalyzed . | . . . . Part Schematics Acquired . | . . . . Parts Damaged . | . . . . Bothacking | -11 -10 -10 -10 ------------ Run | Yrd Mat Min Exi Used RIF Installer . | . . . . Robots Hacked . | . . . . Non-combat . | . . . . Combat . | . . . . Robot Hacks Applied . | . . . . Relay Couplers Released . | . . . . Fabnet Peak Effective % . | . . . . Robots Rewired . | . . . . Allies Hacked . | . . . . Hacks Repelled . | . . . . Allies | -11 -10 -10 -10 -------- Run | Yrd Mat Min Exi Total Allies . | . . . . Largest Group . | . . . . Highest-Rated Group . | . . . . Highest-Rated Ally . | . . . . Total Orders . | . . . . Ally Attacks . | . . . . Total Damage . | . . . . Kills . | . . . . Allies Corrupted . | . . . . Allies Melted . | . . . . Intel | -11 -10 -10 -10 ------- Run | Yrd Mat Min Exi Active Infowar (turns) . | . . . . Robot Analysis Total . | . . . . Derelict Logs Recovered 1 | . . 1 . Drone Launches . | . . . . Drone Recoveries . | . . . . Exploration | -11 -10 -10 -10 ------------- Run | Yrd Mat Min Exi Turns Passed 1230 | 45 678 295 212 Spaces Moved 562 | 37 286 153 86 Core 14 | 14 . . . Treads . | . . . . Legs 548 | 23 286 153 86 Wheels . | . . . . Hover . | . . . . Flight . | . . . . Fastest Speed 50 | 50 120 190 190 Average Speed 175 | 93 174 190 190 Slowest Speed 190 | 120 190 190 190 Overloaded Moves . | . . . . Propulsion Burnouts . | . . . . Robots Hopped . | . . . . Potential Cave-ins . | . . . . Cave-ins Triggered . | . . . . Exploration Rate (%) 35 | 4 55 49 34 Regions Visited 3 Branch Regions 2 Pre-discovered Areas . | . . . . Known Exits Taken . | . . . . Unknown Exits Taken 3 | 1 1 1 . Scrap Searched 3 | . . 3 . Spaces Dug . | . . . . Terrain Destroyed 4 | . 4 . . Melee . | . . . . Projectile . | . . . . AOE 4 | . 4 . . Terrain Rammed . | . . . . Walls Destroyed . | . . . . Machines Disabled . | . . . . Actions | -11 -10 -10 -10 --------- Run | Yrd Mat Min Exi Total 741 | 47 423 156 115 Wait 85 | . 85 . . Move 559 | 36 285 152 86 Hop . | . . . . Pick Up 24 | 5 18 1 . Fast Attach 1 | 1 . . . Attach 18 | 5 7 . 6 Detach 1 | . 1 . . Swap 6 | . 3 3 . Drop 3 | . 3 . . Fire 34 | . 21 . 13 Melee . | . . . . Ram . | . . . . Kick 10 | . . . 10 Crush . | . . . . Escape Stasis . | . . . . Rewire . | . . . . Trap . | . . . . Miscellaneous . | . . . . Route ------- -11/Scrapyard -10/Materials -10/Mines -10/Exiles History --------- Turn | Location | Event 12 | -11/Scrapyard | Discovered new exit (range 15) 46 | -11/Scrapyard | Entered Materials 302 | -10/Materials | Build established: Mutant 603 | -10/Materials | Discovered new exit (range 9) 724 | -10/Materials | Entered Mines 979 | -10/Mines | Learned Materials stockpile data 1009 | -10/Mines | Deemed a non-threat by the Exiles lab entrance 1011 | -10/Mines | Discovered new exit (range 5) 1019 | -10/Mines | Entered Exiles 1071 | -10/Exiles | Met 8R-AWN 1103 | -10/Exiles | Met EX-HEX 1142 | -10/Exiles | Attacked by the Exiles 1181 | -10/Exiles | Core integrity fell below 50% 1209 | -10/Exiles | Core integrity fell below 20% 1231 | -10/Exiles | Destroyed by 8R-AWN with 8R-AWN's Boregun Last Messages --------------- 01224_ HV Slug penetrates BIN's Workstation. 01224_ Penetrated by HV Slug. 01224_ Critical hit (Destroy). 01224_ HV Slug penetrates BIN's Workstation. 01225_ Kicked 8R-AWN. 01226_ Kicked 8R-AWN out of the way. 01226_ Penetrated by HV Slug. 01226_ HV Slug penetrates Machine. 01226_ Penetrated by HV Slug. 01226_ HV Slug penetrates Machine. 01226_ Machine disabled. 01227_ Kicked 8R-AWN. 01228_ Kicked 8R-AWN out of the way. 01229_ HV Slug penetrates FarCom Aligner. 01229_ Penetrated by HV Slug. 01229_ HV Slug penetrates BIN's Workstation. 01229_ Kicked 8R-AWN. 01231_ Penetrated by HV Slug. 01231_ HV Slug penetrates BIN's Workstation. 01231_ Penetrated by HV Slug. Map ----- +----------------------------------------------------+ | ?????????????????????????????????????????????????? | | ?????????????????????????????????????????????????? | | ?????????????????????????????????????????????????? | | ?????????????????????????????????????????????????? | | ?????????????????????????????????????????????????? | | ?????????????????????????????????????????????????? | | ??????????????????????? ?????????????????????????? | | ????????????????????# ???????????????????????? | | ??????????????????? ???????????????????????? | | ???????????????????? ???????????????????????? | | ????????????????????# ???????????????????????? | | ????????????????????# ???####????????????????? | | ????????????????????# ???"" """??????????????? | | ????????????????????# ###" """??????????????? | | ????????????????????# ;#;" """?????????????? | | ???????????????????## ;#;" """"?????????????? | | ???????????????????# """"#????????????? | | ???????????????????#" " "#????????????? | | ???????????????????#" """#????????????? | | ???????????????????# """#????????????? | | ???????????????????#" %= """#????????????? | | ???????????????????#" % % """#????????????? | | ???????????????????## % """""???????????? | | ????????????????????# """#????????????? | | ????????????????????#" % % X" """""???????????? | | ????????????????????#" g@ #????????????? | | ????????????????????#" %%% """"""#????????????? | | ???????????????????## ###########????????????? | | ??????????????????##"" #??????????????????????? | | ?????????????????##"" #??????????????????????? | | ????????????????""""" ##?????????????????????? | | ??????????????"" " "" ##???###########??????? | | ??????????????"" " #####"""""""""##?????? | | ????????????? " " """ """"##????? | | ??????????? "" " #????? | | ??????????? " """#????? | | ??????????? " "#????? | | ???????????? " "##???? | | ???????????? ""###?? | | ???????????? """""" """#?? | | ????????????? ######"" "#?? | | ????????????? ""#?????###"#""" ##? | | ??????????????????????????##""" ## | | ???????????????????????????#"""" # | | ???????????????????????????#"" | | ????????????????????????????""" | | ???????????????????????????? | | ???????????????????????????? | | ??????????????????????????? | | ??????????????????????????? # | +----------------------------------------------------+ Best States ------------- Heat Dissipation 25 Energy Generation 12 Energy Capacity 265 Matter Stores 300 Matter Capacity 300 Sight Range 16 Terrain Scan Density 10 Armor Coverage 150 Resistance: KI 20 Resistance: TH 20 Resistance: EX 20 Resistance: EM 20 Resistance: I 20 Resistance: S 20 Resistance: P 20 Evasion (%) 55 Offensive Hacking 10 Item Schematics ----------------- None Robot Schematics ------------------ None Fabricated ------------ Nothing Repaired ---------- Nothing Alien Tech Used ----------------- None Achievements -------------- None Challenges ------------ None Game ------ Seed OpticalAmuletMapper Manual? 0 Play Time 00:13:31 Cumulative 335.0 hours Start 2025.09.22 @ 05:10:26 End 2025.09.22 @ 05:21:47 Sessions 1 Manual Loads 0 Difficulty Adventurer Special Mode None Game No. 272 Rogue 0 Adventurer 209 Explorer 63 Win Type - Total 0 Types 0/0/0/0/0/0/0/0/0/0 Lore% 54 Gallery% 60 Achievement% 52 Wizard Run 0 Options --------- Layout 1 ASCII 0 Keyboard 0 Movement Mouse Keybinds 0 Fullscreen 2 Font 32/SmallcapsGlow Map View 50x35 Zoom Use 0% Tactical HUD 1 Map Filters NONE Filters NONE Steam 1 RUN: f7edd2e8-a05f-47dd-8d65-4ba5545268d6